bitfinex-derivatives/quotes_BNBF0:USTF0_20250116
["timestamp","ask_amount","ask_price","bid_price","bid_amount"]
[1736992949835,0.25795814,712.97,712.41,2.303]
[1736992950036,0.25795814,712.96,712.41,2.303]
[1736992950235,0.25795814,712.95,712.41,2.303]
[1736992950432,0.25795814,712.94,712.41,2.303]
[1736992950635,0.25795814,712.93,712.41,2.303]
[1736992950832,0.25795814,712.92,712.41,2.303]
[1736992951035,0.25795814,712.91,712.41,2.303]
[1736992951235,0.2804931,713.03,712.41,2.303]
[1736992951236,0.25795814,712.9,712.41,2.303]
[1736992951439,0.25795814,712.89,712.41,2.303]
[1736992951636,0.25795814,713.02,712.41,2.303]
[1736992951832,1.04891546,712.99,712.41,2.303]
[1736992952039,0.25796041,712.98,712.41,2.303]
[1736992952635,1.04891546,712.96,712.41,2.303]
[1736992952837,0.25796041,712.95,712.41,2.303]
[1736992953940,0.25796041,712.94,712.41,2.303]
[1736992954131,0.25796041,712.93,712.41,2.303]
[1736992954336,0.25796041,712.92,712.41,2.303]
[1736992954536,0.25796041,712.91,712.41,2.303]
[1736992954735,0.25796041,712.9,712.41,2.303]
[1736992954938,0.25796041,712.89,712.41,2.303]
[1736992955136,0.2804931,713.03,712.41,2.303]
[1736992955137,0.25796041,712.88,712.41,2.303]
[1736992955334,0.25796041,712.87,712.41,2.303]
[1736992955537,0.25796041,712.86,712.41,2.303]
[1736992955737,0.25796041,712.85,712.41,2.303]
[1736992955932,0.25796041,712.84,712.41,2.303]
[1736992956133,0.2804931,713.03,712.41,2.303]
[1736992956134,0.25796041,712.83,712.41,2.303]
[1736992956337,0.2804931,713.03,712.41,2.303]
[1736992956338,0.25796041,712.82,712.41,2.303]
[1736992956533,0.25796041,712.81,712.41,2.303]
[1736992956734,0.25796041,712.8,712.41,2.303]
[1736992956936,0.25796041,712.79,712.41,2.303]
[1736992957136,0.25795888,712.78,712.41,2.303]
[1736992957339,0.25795888,712.77,712.41,2.303]
[1736992957538,0.25795888,712.76,712.41,2.303]
[1736992957834,0.25796134,712.75,712.41,2.303]
[1736992958034,0.25796134,713.0,712.41,2.303]
[1736992958239,0.25796134,712.99,712.41,2.303]
[1736992958440,0.25796134,712.98,712.41,2.303]
[1736992958638,0.25796134,712.97,712.41,2.303]
[1736992958838,0.25796134,712.96,712.41,2.303]
[1736992959033,0.25796134,712.95,712.41,2.303]
[1736992959339,0.25796134,712.94,712.41,2.303]
[1736992959539,0.25796134,712.93,712.41,2.303]
[1736992959740,0.25796134,712.92,712.41,2.303]
[1736992959936,0.25796134,712.91,712.41,2.303]
[1736992960140,0.25796134,712.9,712.41,2.303]
[1736992960335,0.25796134,712.89,712.41,2.303]
[1736992960538,0.25796134,712.88,712.41,2.303]
[1736992960738,0.25796134,712.87,712.41,2.303]
[1736992960941,0.25796134,712.86,712.41,2.303]
[1736992961241,0.25796134,712.85,712.41,2.303]
[1736992961541,0.25796134,712.84,712.41,2.303]
[1736992961734,0.25796134,712.83,712.41,2.303]
[1736992961938,0.25796134,712.82,712.41,2.303]
[1736992962135,0.25796134,712.81,712.41,2.303]
[1736992962441,0.25796134,712.8,712.41,2.303]
[1736992962737,1.04891546,712.97,712.41,1.239]
[1736992962937,1.04891546,712.92,711.52,1.04552494]
[1736992963136,0.25797827,712.91,711.52,1.04552494]
[1736992963941,0.25797827,712.91,711.52,3.47252494]
[1736992964340,0.25797827,712.91,711.52,2.427]
[1736992964341,1.30689373,712.91,711.52,2.427]
[1736992964542,0.25797827,712.9,711.52,2.427]
[1736992965338,1.30689373,712.9,711.52,2.427]
[1736992965542,0.2580038,712.89,711.52,2.427]
[1736992966138,1.04891546,712.9,711.52,2.427]
[1736992966347,0.25801115,712.89,711.52,2.427]
[1736992966845,0.25801115,712.88,711.52,2.427]
[1736992967145,0.25801115,712.87,711.52,2.427]
[1736992967346,0.25801115,712.86,711.52,2.427]
[1736992967546,0.25801115,712.85,711.52,2.427]
[1736992967747,0.25801115,712.84,711.52,2.427]
[1736992967950,0.25801115,712.83,711.52,2.427]
[1736992968142,0.25801115,712.82,711.52,2.427]
[1736992968341,0.25802007,712.81,711.52,2.427]
[1736992968647,0.25802007,712.8,711.52,2.427]
[1736992968846,0.25802007,712.79,711.52,2.427]
[1736992969048,0.25802007,712.78,711.52,2.427]
[1736992969248,0.53861549,712.77,711.52,2.427]
[1736992969450,0.25802007,712.76,711.52,2.427]
[1736992970352,0.28060329,712.75,711.52,2.427]
[1736992970648,0.25802007,712.74,711.52,2.427]
[1736992971048,0.53868492,712.73,711.52,2.427]
[1736992971251,0.25807375,712.72,711.52,2.427]
[1736992974348,0.28061117,712.73,711.52,2.427]
[1736992974551,0.25803159,712.72,711.52,2.427]
[1736992979353,0.25802294,712.71,711.52,2.427]
[1736992979553,0.25802294,712.7,711.52,2.427]
[1736992979750,0.25802294,712.69,711.52,2.427]
[1736992980053,0.25802294,712.68,711.52,2.427]
[1736992980254,0.25802294,712.67,711.52,2.427]
[1736992980456,0.25802294,712.66,711.52,2.427]
[1736992980655,0.25802294,712.65,711.52,2.427]
[1736992980952,0.25802294,712.64,711.52,2.427]
[1736992981157,0.28061117,712.73,711.52,2.427]
[1736992981358,0.25801843,712.72,711.52,2.427]
[1736992982060,1.04852095,712.66,711.52,2.427]
[1736992982354,0.25801843,712.65,711.52,2.427]
[1736992984060,0.25801701,712.64,711.52,2.427]
[1736992984262,0.25801701,712.63,711.52,2.427]
[1736992984463,0.25801701,712.62,711.52,2.427]
[1736992984760,0.25801701,712.61,711.52,2.427]
[1736992984961,0.25801701,712.6,711.52,2.427]
[1736992985160,0.25801701,712.59,711.52,2.427]
[1736992985360,0.25801701,712.58,711.52,2.427]
[1736992985553,0.25801701,712.57,711.52,2.427]
[1736992985755,0.25801701,712.56,711.52,2.427]
[1736992986057,0.25801701,712.55,711.52,2.427]
[1736992986255,0.25801701,712.54,711.52,2.427]
[1736992986461,0.25801701,712.53,711.52,2.427]
[1736992986762,0.25803081,712.52,711.52,2.427]
[1736992986956,0.25803081,712.51,711.52,2.427]
[1736992987158,0.25803081,712.5,711.52,2.427]
[1736992987565,0.25803081,712.49,711.52,2.427]
[1736992987764,0.25803081,712.48,711.52,2.427]
[1736992988065,0.25803081,712.47,711.52,2.427]
[1736992988263,1.04852095,712.59,711.52,2.427]
[1736992988563,0.25804335,712.58,711.52,2.427]
[1736992989363,0.25804379,712.57,711.52,2.427]
[1736992989567,0.25804379,712.56,711.52,2.427]
[1736992990260,1.04852095,712.55,711.52,2.427]
[1736992990465,0.25804379,712.54,711.52,2.427]
[1736992991468,1.04852095,712.52,711.52,2.427]
[1736992991663,0.25804379,712.51,711.52,2.427]
[1736992992066,1.04852095,712.52,711.52,2.427]
[1736992992262,0.2580611,712.51,711.52,2.427]
[1736992992663,0.2580611,712.5,711.52,2.427]
[1736992992862,0.2580611,712.49,711.52,2.427]
[1736992993063,0.2580611,712.48,711.52,2.427]
[1736992993363,0.2580611,712.47,711.52,2.427]
[1736992993668,0.2580611,712.46,711.52,2.427]
[1736992993862,0.2580611,712.45,711.52,2.427]
[1736992994061,0.2580611,712.44,711.52,2.427]
[1736992994265,0.2580611,712.43,711.52,2.427]
[1736992994462,1.04852095,712.48,711.52,2.427]
[1736992994463,0.2580611,712.42,711.52,2.427]
[1736992994668,1.04852095,712.36,711.52,2.427]
[1736992994868,0.2580611,712.35,711.52,2.427]
[1736992996765,1.04852095,712.34,711.52,2.427]
[1736992996967,0.2580611,712.33,711.52,2.427]
[1736992997574,0.25816349,712.32,711.52,2.427]
[1736992997770,1.04852095,712.34,711.52,2.427]
[1736992997771,0.25816349,712.31,711.52,2.427]
[1736992998073,0.25816349,712.3,711.52,2.427]
[1736992998268,1.04852095,712.34,711.52,2.427]
[1736992998470,0.25816422,712.33,711.52,2.427]
[1736992998773,1.04852095,712.32,711.52,2.427]
[1736992998968,0.25816422,712.31,711.52,2.427]
[1736992999976,0.25816422,712.3,711.52,2.427]
[1736993000169,0.25816422,712.29,711.52,2.427]
[1736993000371,0.25816422,712.33,711.52,2.427]
[1736993000566,0.25816422,712.32,711.52,2.427]
[1736993000769,0.25816422,712.31,711.52,2.427]
[1736993001075,0.25816422,712.3,711.52,2.427]
[1736993001372,0.25816422,712.29,711.52,2.427]
[1736993001573,0.25816422,712.28,711.52,2.427]
[1736993001773,1.04852095,712.34,711.52,2.427]
[1736993001774,0.25816422,712.27,711.52,2.427]
[1736993001976,0.25816422,712.26,711.52,2.427]
[1736993002173,0.25816422,712.25,711.52,2.427]
[1736993002368,0.25816422,712.24,711.52,2.427]
[1736993002569,0.25816422,712.23,711.52,2.427]
[1736993002771,0.25816422,712.22,711.52,2.427]
[1736993002968,0.25816422,712.21,711.52,2.427]
[1736993003474,0.25816422,712.2,711.52,2.427]
[1736993003673,0.25816422,712.19,711.52,2.427]
[1736993003875,0.25816422,712.18,711.52,2.427]
[1736993004175,0.25816422,712.17,711.52,2.427]
[1736993004368,0.25816422,712.16,711.52,2.427]
[1736993004570,0.25816422,712.15,711.52,2.427]
[1736993004769,0.25816422,712.14,711.52,2.427]
[1736993005075,0.25816422,712.13,711.52,2.427]
[1736993005275,0.25816422,712.12,711.52,2.427]
[1736993005475,0.25816422,712.11,711.52,2.427]
[1736993005678,0.25816422,712.1,711.52,2.427]
[1736993005975,1.04852095,712.45,711.52,2.427]
[1736993006172,0.53891591,712.44,711.52,2.427]
[1736993006375,0.25819052,712.43,711.52,2.427]
[1736993006576,0.25819052,712.42,711.52,2.427]
[1736993006777,0.25819052,712.41,711.52,2.427]
[1736993006978,0.25819052,712.4,711.52,2.427]
[1736993007280,0.25819052,712.39,711.52,2.427]
[1736993007573,1.30671147,712.38,711.52,2.427]
[1736993007775,0.25819052,712.37,711.52,2.427]
[1736993008575,1.04852095,712.39,711.52,2.427]
[1736993008777,0.25820207,712.38,711.52,2.427]
[1736993008972,0.25820207,712.37,711.52,2.427]
[1736993009177,0.25820207,712.36,711.52,2.427]
[1736993009479,0.25820207,712.35,711.52,2.427]
[1736993009679,0.25820207,712.34,711.52,2.427]
[1736993009880,0.25820207,712.33,711.52,2.427]
[1736993010081,0.25820207,712.32,711.52,2.427]
[1736993010381,0.25820207,712.31,711.52,2.427]
[1736993010581,0.25820207,712.3,711.52,2.427]
[1736993010879,0.25820207,712.29,711.52,2.427]
[1736993011082,0.25820207,712.28,711.52,2.427]
[1736993011280,0.25820207,712.39,711.52,2.427]
[1736993011477,0.25819013,712.38,711.52,2.427]
[1736993011679,0.25819013,712.37,711.52,2.427]
[1736993011981,0.25819013,712.36,711.52,2.427]
[1736993012179,0.25819013,712.35,711.52,2.427]
[1736993012373,0.25819013,712.34,711.52,2.427]
[1736993012576,0.25819013,712.33,711.52,2.427]
[1736993012776,0.25819013,712.32,711.52,2.427]
[1736993012980,0.25819013,712.31,711.52,2.427]
[1736993013178,0.25819013,712.3,711.52,2.427]
[1736993013383,0.25819013,712.29,711.52,2.427]
[1736993013583,0.25819013,712.28,711.52,2.427]
[1736993013778,0.25819013,712.27,711.52,2.427]
[1736993013983,0.25819013,712.26,711.52,2.427]
[1736993014186,0.25818665,712.25,711.52,2.427]
[1736993014383,0.25818665,712.41,711.52,2.427]
[1736993014580,0.25818665,712.4,711.52,2.427]
[1736993014782,1.04852095,712.42,711.52,2.427]
[1736993014983,0.28072539,712.44,711.52,2.427]
[1736993014984,0.25818666,712.41,711.52,2.427]
[1736993015279,0.25818666,712.4,711.52,2.427]
[1736993015479,0.25818666,712.39,711.52,2.427]
[1736993015682,0.25818666,712.38,711.52,2.427]
[1736993015885,0.25818666,712.37,711.52,2.427]
[1736993016080,0.25818666,712.36,711.52,2.427]
[1736993016282,0.25818666,712.35,711.52,2.427]
[1736993016482,0.25818666,712.34,711.52,2.427]
[1736993016682,0.25818666,712.43,711.52,2.427]
[1736993016878,0.25818666,712.42,711.52,2.427]
[1736993017079,0.2581732,712.41,711.52,2.427]
[1736993017281,0.2581732,712.4,711.52,2.427]
[1736993017482,0.2581732,712.39,711.52,2.427]
[1736993017683,0.2581732,712.38,711.52,2.427]
[1736993017981,0.2581732,712.37,711.52,2.427]
[1736993018178,0.2581732,712.36,711.52,2.427]
[1736993018385,0.2581732,712.35,711.52,2.427]
[1736993018582,0.2581732,712.34,711.52,2.427]
[1736993018778,0.2581732,712.33,711.52,2.427]
[1736993018977,0.2581732,712.32,711.52,2.427]
[1736993019177,0.2581732,712.31,711.52,2.427]
[1736993019379,0.2581732,712.3,711.52,2.427]
[1736993019580,0.2581732,712.29,711.52,2.427]
[1736993019783,0.25821065,712.28,711.52,2.427]
[1736993019987,0.25821065,712.27,711.52,2.427]
[1736993020181,0.25821065,712.26,711.52,2.427]
[1736993020386,0.25821065,712.25,711.52,2.427]
[1736993020686,1.04852095,712.34,711.52,2.427]
[1736993020687,0.25821065,712.24,711.52,2.427]
[1736993020894,0.25821065,712.23,711.52,2.427]
[1736993021081,0.25821065,712.22,711.52,2.427]
[1736993021285,0.25821065,712.21,711.52,2.427]
[1736993021486,0.25821065,712.2,711.52,2.427]
[1736993021687,0.25821065,712.19,711.52,2.427]
[1736993021888,1.04852095,712.32,711.52,2.427]
[1736993022188,0.258205,712.31,711.52,2.427]
[1736993022588,1.04852095,712.4,711.52,2.427]
[1736993022589,0.25820596,712.3,711.52,2.427]
[1736993022788,0.25820596,712.29,711.52,2.427]
[1736993022989,0.25820596,712.28,711.52,2.427]
[1736993023181,0.25820596,712.27,711.52,2.427]
[1736993023384,1.04852095,712.38,711.52,2.427]
[1736993023581,0.25820565,712.37,711.52,2.427]
[1736993024789,1.04852095,712.34,711.52,2.427]
[1736993025088,0.25820565,712.33,711.52,2.427]
[1736993025487,0.25823604,712.32,711.52,2.427]
[1736993025680,0.25823604,712.31,711.52,2.427]
[1736993025883,1.04852095,712.26,711.52,2.427]
[1736993026089,0.25823604,712.25,711.52,2.427]
[1736993026787,1.04852095,712.24,711.52,2.427]
[1736993027089,0.25823604,712.23,711.52,2.427]
[1736993027591,1.04852095,712.2,711.52,2.427]
[1736993027789,0.25823604,712.19,711.52,2.427]
[1736993028188,1.04852095,712.2,711.52,2.427]
[1736993028384,0.2582482,712.19,711.52,2.427]
[1736993028585,1.04852095,712.11,711.52,2.427]
[1736993029590,1.04852095,712.1,711.52,2.427]
[1736993030488,0.25824971,712.09,711.52,2.427]
[1736993030884,1.04852095,712.1,711.52,2.427]
[1736993031088,0.25825577,712.09,711.52,2.427]
[1736993031289,1.04852095,712.02,711.52,2.427]
[1736993031492,0.25825577,712.01,711.52,2.427]
[1736993031693,0.25825795,712.0,711.52,2.427]
[1736993031893,1.04852095,712.02,711.52,2.427]
[1736993032095,0.25825898,712.01,711.52,2.427]
[1736993032486,1.30677993,712.01,711.52,2.427]
[1736993032795,0.25825898,712.0,711.52,2.427]
[1736993033694,1.04852095,711.99,711.52,2.427]
[1736993033895,0.25825898,711.98,711.52,2.427]
[1736993035993,0.25825898,711.97,711.52,2.427]
[1736993036193,1.04852095,712.01,711.52,2.427]
[1736993036593,0.2582583,712.0,711.52,2.427]
[1736993036994,0.2582583,711.99,711.52,2.427]
[1736993037294,0.2582583,711.98,711.52,2.427]
[1736993037494,0.2582583,711.97,711.52,2.427]
[1736993037696,1.04852095,712.03,711.52,2.427]
[1736993037899,0.25825695,712.02,711.52,2.427]
[1736993038890,1.04852095,712.03,711.52,2.427]
[1736993040000,0.28075692,712.36,711.52,2.427]
[1736993040001,1.04852095,712.09,711.52,2.427]
[1736993040298,0.25827988,712.08,711.52,2.427]
[1736993041292,0.25827988,712.09,711.52,2.427]
[1736993041492,0.25827988,712.08,711.52,2.427]
[1736993041696,0.25827988,712.07,711.52,2.427]
[1736993041992,0.25827988,712.06,711.52,2.427]
[1736993042196,0.25827988,712.05,711.52,2.427]
[1736993042390,0.25827988,712.04,711.52,2.427]
[1736993042592,1.04852095,712.08,711.52,2.427]
[1736993043197,1.04852095,712.09,711.52,2.427]
[1736993044099,1.04852095,712.22,711.52,2.427]
[1736993044292,0.2582455,712.21,711.52,2.427]
[1736993045403,1.04852095,712.19,711.52,2.427]
[1736993045592,0.2582455,712.18,711.52,2.427]
[1736993046398,1.04852095,712.14,711.52,2.427]
[1736993046594,0.25825438,712.13,711.52,2.427]
[1736993047300,0.25825386,712.12,711.52,2.427]
[1736993047500,0.25825386,712.11,711.52,2.427]
[1736993047799,1.04852095,712.13,711.52,2.427]
[1736993047800,0.25825386,712.1,711.52,2.427]
[1736993048001,1.04852095,712.13,711.52,2.427]
[1736993048700,1.04852095,712.18,711.52,2.427]
[1736993049798,0.28075692,712.36,711.52,2.427]
[1736993050001,0.25815136,712.35,711.52,2.427]
[1736993051704,1.30667231,712.35,711.52,2.427]
[1736993051904,0.25815136,712.34,711.52,2.427]
[1736993053105,0.25815136,712.33,711.52,2.427]
[1736993053407,0.25815136,712.32,711.52,2.427]
[1736993053707,0.25815136,712.31,711.52,2.427]
[1736993053906,0.25815136,712.3,711.52,2.427]
[1736993054206,0.28075692,712.36,711.52,2.427]
[1736993054207,0.25815136,712.29,711.52,2.427]
[1736993054406,0.25815136,712.28,711.52,2.427]
[1736993054600,0.25815136,712.27,711.52,2.427]
[1736993054907,0.25815171,712.26,711.52,2.427]
[1736993055107,0.25815171,712.25,711.52,2.427]
[1736993055311,0.25815171,712.24,711.52,2.427]
[1736993055507,0.25815171,712.23,711.52,2.427]
[1736993055706,0.28075692,712.36,711.52,2.427]
[1736993055908,0.25815298,712.35,711.52,2.427]
[1736993060311,0.25815475,712.34,711.52,2.427]
[1736993060512,0.25815475,712.33,711.52,2.427]
[1736993060814,0.25815475,712.32,711.52,2.427]
[1736993061015,0.25815475,712.31,711.52,2.427]
[1736993061317,0.25815475,712.3,711.52,2.427]
[1736993061513,0.25815475,712.29,711.52,2.427]
[1736993061814,0.25815475,712.28,711.52,2.427]
[1736993062014,0.25815475,712.27,711.52,2.427]
[1736993062210,0.25815475,712.26,711.52,2.427]
[1736993062411,0.28075692,712.36,711.52,2.427]
[1736993062412,0.25815475,712.25,711.52,2.427]
[1736993062613,0.25815475,712.24,711.52,2.427]
[1736993062808,1.32927787,712.36,711.52,2.427]
[1736993062809,0.25815475,712.23,711.52,2.427]
[1736993063116,0.25820482,712.22,711.52,2.427]
[1736993063317,0.25820482,712.21,711.52,2.427]
[1736993063510,0.25820482,712.2,711.52,2.427]
[1736993063715,0.25820502,712.19,711.52,2.427]
[1736993063915,0.25820502,712.18,711.52,2.427]
[1736993064115,0.25820502,712.17,711.52,2.427]
[1736993064319,0.25820502,712.16,711.52,2.427]
[1736993064516,0.25820502,712.15,711.52,2.427]
[1736993064817,0.25820502,712.14,711.52,2.427]
[1736993065117,0.25820502,712.13,711.52,2.427]
[1736993065310,0.25820502,712.12,711.52,2.427]
[1736993065513,0.25820502,712.11,711.52,2.427]
[1736993065714,1.04852095,712.3,711.52,2.427]
[1736993065914,0.25820593,712.29,711.52,2.427]
[1736993068220,0.25820593,712.28,711.52,2.427]
[1736993068520,0.25820593,712.27,711.52,2.427]
[1736993068819,0.28075692,712.36,711.52,2.427]
[1736993069019,0.25814875,712.35,711.52,2.427]
[1736993071120,0.28075692,712.36,711.52,2.427]
[1736993071319,0.25813251,712.35,711.52,2.427]
[1736993071921,0.28075692,712.36,711.52,2.427]
[1736993074019,1.04852095,712.62,711.52,2.427]
[1736993074326,1.04852095,712.57,711.52,2.427]
[1736993074524,0.25809613,712.56,711.52,2.427]
[1736993075218,1.30661708,712.56,711.52,2.427]
[1736993075423,0.25809613,712.55,711.52,2.427]
[1736993076522,0.25809613,712.54,711.52,2.427]
[1736993076825,1.04852095,712.68,711.52,2.427]
[1736993077023,0.25804923,712.67,711.52,2.427]
[1736993077624,0.25804923,712.66,711.52,2.427]
[1736993077824,1.04852095,712.69,711.52,2.427]
[1736993078022,0.25802384,712.68,711.52,2.427]
[1736993078524,0.25802384,712.67,711.52,2.427]
[1736993078720,0.25802384,712.66,711.52,2.427]
[1736993079026,0.25802384,712.65,711.52,2.427]
[1736993079225,0.25802384,712.64,711.52,2.427]
[1736993079426,0.51607374,712.63,711.52,2.427]
[1736993079627,0.25803498,712.62,711.52,2.427]
[1736993080030,0.25803876,712.63,711.52,2.427]
[1736993080227,0.25805052,712.62,711.52,2.427]
[1736993081626,0.25803876,712.63,711.52,2.427]
[1736993087539,1.04852095,712.94,711.52,2.427]
[1736993087739,0.53856617,712.93,711.52,2.427]
[1736993087941,0.5385701,712.92,711.52,2.427]
[1736993088134,0.53857404,712.91,711.52,2.427]
[1736993088338,0.53857797,712.9,711.52,2.427]
[1736993088540,0.25803372,712.89,711.52,2.427]
[1736993089736,0.28055212,712.88,711.52,2.427]
[1736993089941,0.25803372,712.87,711.52,2.427]
[1736993092134,1.04852095,712.86,711.52,2.427]
[1736993092340,0.25803372,712.85,711.52,2.427]
[1736993093139,1.04852095,712.83,711.52,2.427]
[1736993093344,0.25803946,712.82,711.52,2.427]
[1736993094442,0.28057967,712.81,711.52,2.427]
[1736993094646,0.25803946,712.8,711.52,2.427]
[1736993094944,1.30656041,712.8,711.52,2.427]
[1736993095145,0.25805174,712.79,711.52,2.427]
[1736993095739,1.04852095,712.77,711.52,2.427]
[1736993095941,0.25805174,712.76,711.52,2.427]
[1736993096140,0.25803826,712.75,711.52,2.427]
[1736993098247,1.30655921,712.75,711.52,2.427]
[1736993098446,0.25803826,712.74,711.52,2.427]
[1736993098847,1.04852095,712.75,711.52,2.427]
[1736993099044,0.25804594,712.74,711.52,2.427]
[1736993099348,1.04852095,712.69,711.52,2.427]
[1736993099548,0.25804594,712.68,711.52,2.427]
[1736993100346,0.25804594,712.67,711.52,2.427]
[1736993100542,0.25804594,712.66,711.52,2.427]
[1736993100744,0.25804594,712.65,711.52,2.427]
[1736993100948,0.25804594,712.64,711.52,2.427]
[1736993101149,1.74679973,712.81,711.52,2.427]
[1736993101150,1.04852095,712.76,711.52,2.427]
[1736993101349,0.25804339,712.75,711.52,2.427]
[1736993102253,1.04852095,712.72,711.52,2.427]
[1736993102450,0.25804339,712.71,711.52,2.427]
[1736993103253,1.04852095,712.66,711.52,2.427]
[1736993103454,0.25804128,712.65,711.52,2.427]
[1736993104553,1.04852095,712.66,711.52,2.427]
[1736993105447,1.04852095,712.72,711.52,2.427]
[1736993106654,1.04852095,712.76,711.52,2.427]
[1736993106854,0.25800453,712.75,711.52,2.427]
[1736993107652,1.04852095,712.67,711.52,2.427]
[1736993107853,0.25800453,712.66,711.52,2.427]
[1736993108751,1.04852095,712.5,711.52,2.427]
[1736993108955,0.25800453,712.49,711.52,2.427]
[1736993110057,1.04852095,712.44,711.52,2.427]
[1736993110651,1.04852095,712.44,711.53,0.28108442]
[1736993111258,1.04852095,712.46,711.57,1.04552494]
[1736993112057,1.04852095,712.46,711.57,3.25352494]
[1736993112254,1.04852095,712.58,711.57,2.208]
[1736993113855,0.29252095,712.58,711.57,2.208]
[1736993114456,0.28057967,712.81,711.57,2.208]
[1736993114656,0.51600479,712.8,711.57,2.208]
[1736993114861,0.25800373,712.79,711.57,2.208]
[1736993117058,0.25800106,712.8,711.57,2.208]
[1736993117358,0.25800914,712.79,711.57,2.208]
[1736993118961,0.25800914,712.78,711.57,2.208]
[1736993119161,0.25800914,712.77,711.57,2.208]
[1736993119362,0.25800914,712.76,711.57,2.208]
[1736993119560,0.28057967,712.81,711.57,2.208]
[1736993119561,0.25800914,712.75,711.57,2.208]
[1736993119762,1.32949513,712.81,711.57,2.208]
[1736993119964,0.25801157,712.8,711.57,2.208]
[1736993120564,0.25801429,712.79,711.57,2.208]
[1736993120866,1.32949513,712.81,711.57,2.208]
[1736993120867,0.25801429,712.78,711.57,2.208]
[1736993121061,0.25801429,712.77,711.57,2.208]
[1736993121266,0.25801429,712.76,711.57,2.208]
[1736993121468,1.32949513,712.81,711.57,2.208]
[1736993121469,0.25801429,712.75,711.57,2.208]
[1736993121668,0.25801429,712.74,711.57,2.208]
[1736993121868,0.25801429,712.73,711.57,2.208]
[1736993122064,0.25801429,712.72,711.57,2.208]
[1736993122268,0.25801429,712.71,711.57,2.208]
[1736993122465,0.25801429,712.7,711.57,2.208]
[1736993122663,0.25801429,712.69,711.57,2.208]
[1736993122867,0.25801429,712.68,711.57,2.208]
[1736993123067,0.25801429,712.67,711.57,2.208]
[1736993123268,0.25801429,712.66,711.57,2.208]
[1736993123465,0.25801429,712.65,711.57,2.208]
[1736993123772,0.25801429,712.64,711.57,2.208]
[1736993123972,0.25801429,712.63,711.57,2.208]
[1736993124170,1.04891546,712.79,711.57,2.208]
[1736993124171,0.25801429,712.62,711.57,2.208]
[1736993124370,0.25801429,712.61,711.57,2.208]
[1736993124570,0.25801429,712.6,711.57,2.208]
[1736993124771,0.25801429,712.59,711.57,2.208]
[1736993124973,1.429e-05,712.58,711.57,2.208]
[1736993125173,1.429e-05,712.74,711.57,2.208]
[1736993125370,1.04891546,712.75,711.57,2.208]
[1736993125763,0.28057967,712.81,711.57,2.208]
[1736993125764,1.04891546,712.73,711.57,2.208]
[1736993126267,0.25801459,712.72,711.57,2.208]
[1736993126470,1.04891546,712.7,711.57,2.208]
[1736993126772,0.25801459,712.69,711.57,2.208]
[1736993127566,0.25801459,712.68,711.57,2.208]
[1736993127765,0.25801459,712.67,711.57,2.208]
[1736993127966,0.25801459,712.66,711.57,2.208]
[1736993128169,0.25801243,712.65,711.57,2.208]
[1736993128376,0.25801243,712.64,711.57,2.208]
[1736993128672,0.25801243,712.63,711.57,2.208]
[1736993128873,0.25801243,712.62,711.57,2.208]
[1736993129073,0.25801243,712.61,711.57,2.208]
[1736993129373,0.25801243,712.6,711.57,2.208]
[1736993129573,0.25801243,712.59,711.57,2.208]
[1736993129774,1.04891546,712.78,712.6,0.258]
[1736993129974,0.2580097,712.77,712.6,0.258]
[1736993130573,1.04891546,712.76,711.57,2.208]
[1736993130772,0.2580097,712.75,711.57,2.208]